fUSD/lending_fUSD_20250427
["ID","MTS","AMOUNT","RATE_DAILY","PERIOD"]
[359181767,1745778653026,-500.0,0.00019999,2]
[359181768,1745778653037,-500.0,0.00019999,2]
[359181769,1745778653048,-500.0,0.00019999,2]
[359181770,1745778653058,-500.0,0.00019999,2]
[359181771,1745778653069,-480.0,0.00019999,2]
[359181772,1745778653083,-480.0,0.00019999,2]
[359181773,1745778653093,-480.0,0.00019999,2]
[359181774,1745778653103,-480.0,0.00019999,2]
[359181775,1745778653114,-480.0,0.00019999,2]
[359181776,1745778653126,-500.0,0.00019999,2]
[359181777,1745778653136,-480.0,0.00019999,2]
[359181778,1745778653147,-480.0,0.00019999,2]
[359181779,1745778653159,-480.0,0.00019999,2]
[359181780,1745778653168,-480.0,0.00019999,2]
[359181781,1745778653177,-480.0,0.00019999,2]
[359181782,1745778653187,-480.0,0.00019999,2]
[359181783,1745778653199,-222.01891754,0.00019999,2]
[359181784,1745778653211,-500.0,0.00019999,2]
[359181785,1745778653223,-480.0,0.00019999,2]
[359181786,1745778653233,-480.0,0.00019999,2]
[359181787,1745778653243,-312.97,0.00019999,2]
[359181788,1745778653253,-480.0,0.00019999,2]
[359181789,1745778653262,-480.0,0.00019999,2]
[359181790,1745778653272,-480.0,0.00019999,2]
[359181791,1745778653283,-480.0,0.00019999,2]
[359181792,1745778653293,-480.0,0.00019999,2]
[359181793,1745778653303,-480.0,0.00019999,2]
[359181794,1745778653314,-480.0,0.00019999,2]
[359181795,1745778653323,-500.0,0.00019999,2]
[359181796,1745778653334,-480.0,0.00019999,2]
[359181797,1745778653343,-544.73,0.00019999,2]
[359181798,1745778653354,-480.0,0.00019999,2]
[359181799,1745778653364,-480.0,0.00019999,2]
[359181800,1745778653374,-480.0,0.00019999,2]
[359181801,1745778653383,-480.0,0.00019999,2]
[359181802,1745778653393,-480.0,0.00019999,2]
[359181803,1745778653403,-480.0,0.00019999,2]
[359181804,1745778653413,-500.0,0.00019999,2]
[359181805,1745778653423,-480.0,0.00019999,2]
[359181806,1745778653433,-480.0,0.00019999,2]
[359181807,1745778653443,-480.0,0.00019999,2]
[359181808,1745778653716,-512.62,0.00019999,2]
[359181809,1745778653727,-480.0,0.00019999,2]
[359181810,1745778653738,-480.0,0.00019999,2]
[359181811,1745778653748,-536.6190701,0.00019999,2]
[359181812,1745778653758,-500.0,0.00019999,2]
[359181813,1745778653767,-500.0,0.00019999,2]
[359181814,1745778653776,-500.0,0.00019999,2]
[359181815,1745778653786,-500.0,0.00019999,2]
[359181816,1745778653795,-500.0,0.00019999,2]
[359181817,1745778653804,-480.0,0.00019999,2]
[359181818,1745778653814,-228.73,0.00019999,2]
[359181819,1745778653824,-500.0,0.00019999,2]
[359181820,1745778653834,-500.0,0.00019999,2]
[359181821,1745778653843,-500.0,0.00019999,2]
[359181822,1745778653853,-500.0,0.00019999,2]
[359181823,1745778653863,-500.0,0.00019999,2]
[359181824,1745778653872,-500.0,0.00019999,2]
[359181825,1745778653882,-500.0,0.00019999,2]
[359181826,1745778653891,-505.48,0.00019999,2]
[359181827,1745778653900,-500.0,0.00019999,2]
[359181828,1745778653909,-500.0,0.00019999,2]
[359181829,1745778653919,-500.0,0.00019999,2]
[359181830,1745778653929,-500.0,0.00019999,2]
[359181831,1745778653938,-480.0,0.00019999,2]
[359181832,1745778653948,-320.68,0.00019999,2]
[359181833,1745778653958,-500.0,0.00019999,2]
[359181834,1745778653967,-500.0,0.00019999,2]
[359181835,1745778653977,-480.0,0.00019999,2]
[359181836,1745778653986,-280.48,0.00019999,2]
[359181837,1745778653996,-500.0,0.00019999,2]
[359181838,1745778654006,-500.0,0.00019999,2]
[359181839,1745778654016,-469.32497562,0.00019999,2]
[359181840,1745778654026,-537.85,0.00019999,2]
[359181841,1745778654035,-500.0,0.00019999,2]
[359181842,1745778654045,-500.0,0.00019999,2]
[359181843,1745778654054,-480.0,0.00019999,2]
[359181844,1745778654063,-541.89,0.00019999,2]
[359181845,1745778654073,-466.31,0.00019999,2]
[359181846,1745778654086,-413.27,0.00019999,2]
[359181847,1745778654096,-8471.7060937,0.0002,2]
[359181848,1745778654108,-45707.421,0.0002,2]
[359181849,1745778654119,-27657.16378,0.0002,2]
[359181850,1745778654131,-13200.01040075,0.0002,2]
[359181851,1745778654143,-8896.51031925,0.0002,2]
[359181852,1745778654156,-3036.24757769,0.0002,2]
[359181853,1745778654167,-2835.0,0.0002,2]
[359181854,1745778654684,-162.69,0.00019393,2]
[359181855,1745778661736,180.069975,0.00019296,2]
[359181856,1745778684313,3034.00157081,0.00019032,2]
[359181857,1745778684334,965.99842919,0.00019032,2]
[359181858,1745778727717,2997.621752,7.945e-05,2]
[359181859,1745778762907,531.2,0.00018898,2]
[359181860,1745778787306,500.0,0.00018898,2]
[359181861,1745778819153,161.54,0.00018898,2]
[359181862,1745778855397,4843.63981881,0.00018943,2]
[359181863,1745778855420,80.66018119,0.00018943,2]
[359181864,1745778881061,9919.33981881,0.0001896,2]
[359181865,1745778881089,31570.64018119,0.0001896,2]
[359181866,1745778971948,182.06382512,0.00019291,2]
[359181867,1745778972284,161.19,0.00019005,2]
[359181868,1745778978305,-540.52,0.00019393,2]
[359181869,1745778978328,-200.0,0.00019478,2]
[359181870,1745778982077,152.0,0.00019465,2]
[359181871,1745779057575,152.0,0.00019465,2]
[359181872,1745779072010,184.38,0.00018872,2]
[359181873,1745779073093,186.68,0.00015098,2]
[359181874,1745779094953,185.44,0.00018985,2]
[359181875,1745779099618,2000.0,0.00018829,2]
[359181876,1745779099640,2000.0,0.00018829,2]
[359181877,1745779099663,2000.0,0.00018829,2]
[359181878,1745779099686,10823.16,0.00018829,2]
[359181880,1745779130546,250.0,0.00017,2]
[359181881,1745779131629,300.0,0.00019,2]
[359181882,1745779157656,150.0,0.00018818,7]
[359181883,1745779168437,6839.87,0.00018967,2]
[359181884,1745779228432,1278.87,0.00016899,2]
[359181885,1745779228646,1278.87,0.00019163,2]
[359181886,1745779240566,2000.0,0.00018836,2]
[359181887,1745779296633,193.74,0.00018912,2]
[359181888,1745779297194,193.74,0.00028369,120]
[359181889,1745779357823,250.0,0.00019034,2]
[359181890,1745779386203,2356.02,0.00018986,2]
[359181891,1745779420380,150.0,0.00018933,2]
[359181892,1745779543065,500.0,0.00018803,2]
[359181893,1745779631295,2000.0,0.00018794,2]
[359181894,1745779633530,-152.0,0.00019355,2]
[359181895,1745779652623,200.0,0.00018814,2]
[359181900,1745779746349,160.0,0.0003,30]
[359181901,1745779779021,1000.0,0.00018868,2]
[359181902,1745779821939,200.0,0.00018872,2]
[359181908,1745779832240,-200.0,0.00019452,2]
[359181909,1745779832250,-198.05286501,0.00019476,2]
[359181910,1745779832471,-1.94713499,0.00019476,2]
[359181911,1745779832495,-166.68,0.00019501,2]
[359181912,1745779832504,-316.47290072,0.00019576,2]
[359181913,1745779832515,-64.89996429,0.00019644,2]
[359181914,1745779832527,-85.10003571,0.00019644,2]
[359181915,1745779832537,-200.82596429,0.00019675,2]
[359181916,1745779832549,-567.02785561,0.00019675,2]
[359181917,1745779832559,-432.1461801,0.00019675,2]
[359181918,1745779832570,-850.0,0.00019676,2]
[359181919,1745779832580,-137.27222469,0.00019676,2]
[359181920,1745779832592,-162.72777531,0.00019676,2]
[359181921,1745779832602,-150.99,0.00019677,2]
[359181922,1745779832611,-582.42823914,0.00019677,2]
[359181923,1745779832622,-5043.40180296,0.00019677,2]
[359181924,1745779832634,-26984.0499579,0.00019677,2]
[359181925,1745779832643,-316.47290071,0.00019688,2]
[359181926,1745779832654,-150.0,0.00019727,2]
[359181927,1745779832663,-150.0,0.00019734,2]
[359181929,1745779832673,-150.0,0.00019736,2]
[359181931,1745779832682,-150.0,0.0001974,2]
[359181933,1745779832691,-150.0,0.00019756,2]
[359181935,1745779832700,-150.0,0.00019756,2]
[359181937,1745779832710,-150.0,0.00019761,2]
[359181938,1745779832719,-150.0,0.00019762,2]
[359181940,1745779832728,-150.0,0.00019774,2]
[359181942,1745779832737,-150.0,0.00019783,2]
[359181943,1745779832747,-150.0,0.00019784,2]
[359181944,1745779832756,-150.0,0.00019787,2]
[359181945,1745779832766,-316.47290071,0.000198,2]
[359181946,1745779832775,-485.47249947,0.000198,2]
[359181948,1745779832784,-2928.03,0.000198,2]
[359181949,1745779832794,-150.0,0.00019828,2]
[359181950,1745779832803,-150.0,0.00019842,2]
[359181951,1745779832812,-150.0,0.00019843,2]
[359181952,1745779832823,-150.0,0.00019847,2]
[359181953,1745779832832,-150.0,0.00019858,2]
[359181954,1745779832843,-150.0,0.00019861,2]
[359181955,1745779832852,-150.0,0.00019872,2]
[359181956,1745779832861,-150.0,0.00019876,2]
[359181957,1745779832871,-150.0,0.00019894,2]
[359181958,1745779832880,-610.3522,0.00019899,2]
[359181959,1745779832890,-500.0,0.00019899,2]
[359181960,1745779832903,-500.0,0.00019899,2]
[359181961,1745779832912,-500.0,0.00019899,2]
[359181962,1745779832922,-500.0,0.00019899,2]
[359181963,1745779832931,-480.0,0.00019899,2]
[359181964,1745779832940,-269.8531,0.000199,2]
[359181965,1745779832951,-3926.8923,0.000199,2]
[359181966,1745779832961,-484.35222938,0.000199,2]
[359181967,1745779832977,-51.86257062,0.000199,2]
[359181968,1745779832986,-161.95,0.000199,2]
[359181969,1745779832996,-351.29,0.000199,2]
[359181970,1745779833006,-8.09341314,0.000199,2]
[359181971,1745779833150,-3977.66078686,0.000199,2]
[359181972,1745779833160,-608.40224543,0.000199,2]
[359181973,1745779833171,-513.74121267,0.000199,2]
[359181974,1745779833182,-3511.0723419,0.000199,2]
[359181975,1745779833191,-173.150254,0.000199,2]
[359181976,1745779833200,-2249.3656811,0.000199,2]
[359181977,1745779833211,-752.1393189,0.000199,2]
[359181978,1745779833220,-295.71379368,0.000199,2]
[359181979,1745779833232,-1203.75385974,0.000199,2]
[359181980,1745779833241,-336.72975979,0.000199,2]
[359181981,1745779833251,-2439.48566585,0.000199,2]
[359181982,1745779833260,-937.73293225,0.000199,2]
[359181983,1745779833269,-150.0,0.00019938,2]
[359181984,1745779833278,-153.21573946,0.00019953,2]
[359181985,1745779833288,-207.4,0.00019953,2]
[359181986,1745779833297,-151.0,0.00019954,2]
[359181987,1745779833307,-668.65185757,0.00019954,2]
[359181988,1745779833316,-501.47327578,0.00019973,2]
[359181989,1745779833326,-500.0,0.00019973,2]
[359181990,1745779833335,-632.2629958,0.00019973,2]
[359181991,1745779833345,-500.0,0.00019973,2]
[359181992,1745779833354,-500.0,0.00019973,2]
[359181993,1745779833363,-366.99681186,0.00019973,2]
[359181994,1745779833374,-500.0,0.00019973,2]
[359181995,1745779833383,-500.0,0.00019973,2]
[359181996,1745779833392,-242.592417,0.00019973,2]
[359182008,1745779838365,-247.0443208,0.00019973,2]
[359182009,1745779838375,-629.906702,0.00019973,2]
[359182010,1745779838384,-150.0,0.00019979,2]
[359182011,1745779838394,-162.472,0.00019981,2]
[359182012,1745779838404,-150.0,0.00019989,2]
[359182013,1745779838416,-199.72973054,0.0001999,2]
[359182014,1745779838427,-163.37243597,0.0001999,2]
[359182015,1745779838439,-36.35729457,0.0001999,2]
[359182016,1745779838449,-150.0,0.00019991,2]
[359182017,1745779838458,-513.38132394,0.00019998,2]
[359182018,1745779838468,-500.0,0.00019998,2]
[359182019,1745779838478,-501.53143593,0.00019998,2]
[359182020,1745779838489,-500.0,0.00019998,2]
[359182021,1745779838499,-387.59,0.00019998,2]
[359182022,1745779838509,-500.0,0.00019999,2]
[359182023,1745779838518,-415.3338922,0.00019999,2]
[359182024,1745779838527,-500.0,0.00019999,2]
[359182025,1745779838539,-500.0,0.00019999,2]
[359182026,1745779838550,-500.0,0.00019999,2]
[359182027,1745779838560,-500.0,0.00019999,2]
[359182028,1745779838569,-500.0,0.00019999,2]
[359182030,1745779838578,-500.0,0.00019999,2]
[359182032,1745779838588,-500.0,0.00019999,2]
[359182034,1745779838597,-150.0,0.00019999,2]
[359182035,1745779838607,-500.0,0.00019999,2]
[359182036,1745779838616,-385.79760635,0.00019999,2]
[359182037,1745779838626,-47518.15063723,0.0002,2]
[359182038,1745779838635,-65876.85780978,0.0002,2]
[359182039,1745779838646,-178446.86139177,0.0002,2]
[359182049,1745779840506,-2007.15973565,0.0002,2]
[359182050,1745779840561,-434.20147316,0.0002,2]
[359182051,1745779840572,-3246.94269939,0.0002,2]
[359182052,1745779841036,-19083.98197207,0.0002,2]
[359182055,1745779841047,-573.61247457,0.0002,2]
[359182072,1745779843653,-450.43507679,0.0002,2]
[359182078,1745779872231,-344.44242011,0.00019384,2]
[359182079,1745779876471,-368.5350206,0.00019384,2]
[359182080,1745779880280,-171.79255929,0.00019384,2]
[359182081,1745779890965,16135.31,0.00019301,2]
[359182082,1745780003600,540.52,0.00018996,2]
[359182083,1745780017637,4000.0,0.00018969,2]
[359182084,1745780096877,186.68,0.00015117,2]
[359182085,1745780124253,2000.0,0.00018893,2]
[359182086,1745780152196,184.38,0.00018892,2]
[359182087,1745780189009,150.0,0.00018895,7]
[359182088,1745780302945,-416.0,0.00030613,30]
[359182089,1745780302987,-500.0,0.0003726,60]
[359182090,1745780303014,-521.65201355,0.00037808,60]
[359182091,1745780303045,-150.0,0.00038,30]
[359182092,1745780303072,-500.0,0.00038356,60]
[359182093,1745780303102,-500.0,0.00039452,60]
[359182094,1745780303131,-150.0,0.0004,30]
[359182095,1745780303159,-500.0,0.0004,30]
[359182096,1745780303186,-2498.6342945,0.0004,60]
[359182097,1745780303212,-173.150254,0.0004,30]
[359182098,1745780303239,-500.0,0.000403,60]
[359182099,1745780303266,-163.809634,0.000405,30]
[359182100,1745780303293,-161.147851,0.000405,30]
[359182101,1745780303321,-164.726478,0.000405,30]
[359182102,1745780303348,-201.863298,0.000405,30]
[359182103,1745780303373,-530.78835963,0.00040548,60]
[359182104,1745780303400,-2110.0,0.00040596,30]
[359182105,1745780303429,-164.129068,0.0004075,30]
[359182106,1745780303455,-205.54,0.0004078,40]
[359182107,1745780303489,-218.12,0.00041095,120]
[359182108,1745780312023,164.66,0.00019178,2]
[359182109,1745780332136,158.0,0.000327,120]
[359182110,1745780351478,350.428,0.00041055,30]
[359182111,1745780353890,250.0,0.00018998,2]
[359182112,1745780357562,1000.0,0.0004099,30]
[359182113,1745780371558,164.129069,0.000405,30]
[359182114,1745780372746,1194.70520448,0.00040884,120]
[359182115,1745780375543,242.533,0.00040884,30]
[359182116,1745780394791,164.268057,0.000405,30]
[359182117,1745780400513,201.863299,0.000405,30]
[359182118,1745780400795,509.2,0.000327,120]
[359182119,1745780401108,509.2,0.000331,120]
[359182120,1745780401417,509.2,0.000334,120]
[359182121,1745780401706,509.2,0.000337,120]
[359182122,1745780403190,1098.52,0.00041096,120]
[359182123,1745780403221,498.999999,0.00041096,30]
[359182124,1745780403255,999.98520434,0.00037808,60]
[359182125,1745780403293,307.48700079,0.0004,30]
[359182126,1745780403327,1000.0,0.00037808,60]
[359182127,1745780407776,1532.6,0.0004109,30]
[359182128,1745780413524,509.2,0.000327,120]
[359182129,1745780413801,509.2,0.000331,120]
[359182130,1745780414122,509.2,0.000334,120]
[359182131,1745780414437,509.2,0.000337,120]
[359182132,1745780414777,509.2,0.000341,120]
[359182133,1745780414893,161.147855,0.000405,30]
[359182134,1745780415086,509.2,0.000344,120]
[359182135,1745780415789,509.2,0.000347,120]
[359182136,1745780416116,509.2,0.00035,120]
[359182137,1745780416212,160.0,0.0004,30]
[359182138,1745780416330,160.0,0.00038,30]
[359182139,1745780416485,509.2,0.000354,120]
[359182140,1745780416523,167.22831,0.000405,30]
[359182141,1745780416785,509.2,0.000357,120]
[359182142,1745780416856,160.161709,0.000405,30]
[359182143,1745780417075,509.2,0.00036,120]
[359182144,1745780417171,160.161709,0.00040375,30]
[359182145,1745780417386,509.2,0.000363,120]
[359182146,1745780417678,509.2,0.000367,120]
[359182147,1745780418328,509.2,0.00037,120]
[359182148,1745780418632,509.2,0.000373,120]
[359182149,1745780418932,509.2,0.000377,120]
[359182150,1745780419249,509.2,0.00038,120]
[359182151,1745780419554,509.2,0.000383,120]
[359182152,1745780419867,509.2,0.000386,120]
[359182153,1745780419904,500.0,0.00041096,30]
[359182154,1745780420178,477.0,0.00041096,30]
[359182155,1745780420223,509.2,0.00039,120]
[359182156,1745780420485,509.2,0.000393,120]
[359182157,1745780420574,160.161709,0.0002,5]
[359182158,1745780420789,509.2,0.000396,120]
[359182159,1745780420879,160.161709,0.0001993,5]
[359182160,1745780421098,509.2,0.000399,120]
[359182161,1745780421397,509.2,0.000403,120]
[359182162,1745780421697,509.2,0.000406,120]
[359182163,1745780421994,509.2,0.000409,120]
[359182164,1745780422264,160.161709,0.0002,10]
[359182165,1745780426482,217.26494723,0.00033812,60]
[359182166,1745780428635,165.052926,0.000405,30]
[359182167,1745780432074,1561.25,0.00018904,2]
[359182168,1745780432752,1561.25,0.00025992,120]
[359182169,1745780432969,1561.25,0.00028355,120]
[359182170,1745780434753,168.008436,0.000324,60]
[359182171,1745780440825,871.529276,0.00041,34]
[359182172,1745780448540,405.45264505,0.00018904,2]
[359182173,1745780448571,166.94001965,0.00018904,2]
[359182174,1745780450694,186.99,0.00032877,30]
[359182175,1745780451106,186.99,0.00038356,30]
[359182176,1745780460908,1174.2,0.00016955,2]
[359182177,1745780461126,1174.2,0.00019218,2]
[359182178,1745780472821,158.0,0.00025,30]
[359182179,1745780503048,1074.53462772,0.000399,30]
[359182180,1745780510108,435.74109189,0.000372,120]
[359182181,1745780515055,435.74109185,0.000372,120]
[359182182,1745780520053,435.74109185,0.000372,120]
[359182183,1745780525038,435.74109185,0.000372,120]
[359182184,1745780530032,435.74109185,0.000372,120]
[359182185,1745780534480,200.0,0.00041,30]
[359182186,1745780534905,200.0,0.00041,30]
[359182187,1745780535606,200.0,0.00041,30]
[359182188,1745780535899,1333.0,0.00040658,120]
[359182189,1745780536091,200.0,0.00041,30]
[359182190,1745780536571,200.0,0.00041,30]
[359182191,1745780537349,200.0,0.00041,30]
[359182192,1745780537630,200.0,0.00041,30]
[359182193,1745780537947,348.0,0.00041,30]
[359182194,1745780540712,500.0,0.00040716,30]
[359182195,1745780541067,673.64764893,0.00041014,30]
[359182196,1745780541525,160.0,0.000407,63]
[359182197,1745780542070,160.0,0.000397,60]
[359182198,1745780542587,160.0,0.000387,57]
[359182199,1745780542621,1995.0,0.000408,60]
[359182200,1745780543039,312.0,0.000377,54]
[359182201,1745780543070,700.0,0.00040012,30]
[359182202,1745780543390,531.29652422,0.00040215,30]
[359182203,1745780543422,700.0,0.00040157,30]
[359182204,1745780543737,700.0,0.0004018,30]
[359182205,1745780544178,700.0,0.00040213,30]
[359182206,1745780544512,700.0,0.00040432,30]
[359182207,1745780544909,700.0,0.0004044,30]
[359182208,1745780545349,700.0,0.00040566,30]
[359182209,1745780545714,700.0,0.00040597,30]
[359182210,1745780546059,700.0,0.00040708,30]
[359182211,1745780546387,1154.01619194,0.00040984,30]
[359182212,1745780571088,151.6553832,0.000399,30]
[359182213,1745780592278,500.0,0.00036427,120]
[359182214,1745780592604,500.0,0.00038027,120]
[359182215,1745780592981,489.24292,0.00040448,120]
[359182216,1745780598148,500.0,0.00036427,120]
[359182217,1745780598493,500.0,0.00038027,120]
[359182218,1745780598874,524.127594,0.00040448,120]
[359182219,1745780602144,500.0,0.00038027,120]
[359182220,1745780602472,500.0,0.00041095,120]
[359182221,1745780604191,500.0,0.00032876,120]
[359182222,1745780604421,500.0,0.00032876,120]
[359182223,1745780604657,500.0,0.00032876,120]
[359182224,1745780604988,500.0,0.00032876,120]
[359182225,1745780605289,500.0,0.00032876,120]
[359182226,1745780605566,500.0,0.00032876,120]
[359182227,1745780605838,500.0,0.00032876,120]
[359182228,1745780606080,500.0,0.00032876,120]
[359182229,1745780606348,500.0,0.00032876,120]
[359182230,1745780606611,500.0,0.00032876,120]
[359182231,1745780606858,500.0,0.00032876,120]
[359182232,1745780607096,509.24189642,0.00032876,120]
[359182233,1745780655657,350.428,0.00041055,30]
[359182234,1745780703126,246.12142158,0.00037808,60]
[359182235,1745780709703,200.0,0.00018836,2]
[359182236,1745780729854,150.0,0.00018848,2]
[359182237,1745780751551,473.02808589,0.00019218,2]
[359182238,1745780751615,151.00000001,0.00019218,2]
[359182239,1745780751965,163.91024141,0.00019218,2]
[359182240,1745780753030,315.35205726,0.00019218,2]
[359182241,1745780753865,195.54,0.00019218,2]
[359182242,1745780753888,14.69470484,0.00019218,2]
[359182243,1745780754646,151.0,0.00019218,2]
[359182244,1745780755308,269.46940969,0.00019218,2]
[359182245,1745780755358,188.1,0.000335,31]
[359182246,1745780755612,188.1,0.000335,31]
[359182247,1745780755793,188.1,0.000335,31]
[359182248,1745780755831,188.1,0.000335,31]
[359182249,1745780755872,188.1,0.000335,31]
[359182250,1745780755909,188.1,0.000335,31]
[359182251,1745780755946,188.1,0.000335,31]
[359182252,1745780755982,188.1,0.000335,31]
[359182253,1745780756024,188.1,0.000335,31]
[359182254,1745780756060,188.1,0.000335,31]
[359182255,1745780756107,188.1,0.000335,31]
[359182256,1745780756146,188.1,0.000335,31]
[359182257,1745780756183,188.1,0.000366,31]
[359182258,1745780756228,188.1,0.000366,31]
[359182259,1745780756265,188.1,0.000366,31]
[359182260,1745780756301,188.1,0.000366,31]
[359182261,1745780756335,188.1,0.000366,31]
[359182262,1745780756368,188.1,0.000366,31]
[359182263,1745780756419,188.1,0.000366,31]
[359182264,1745780756480,188.1,0.000366,31]
[359182265,1745780756545,188.1,0.000366,31]
[359182266,1745780756602,188.1,0.000366,31]
[359182267,1745780756665,188.1,0.000366,31]
[359182268,1745780756727,188.1,0.000366,31]
[359182269,1745780756789,188.1,0.000366,31]
[359182270,1745780756846,188.1,0.000366,31]
[359182271,1745780756911,188.1,0.000366,31]
[359182272,1745780756971,188.1,0.000366,31]
[359182273,1745780757034,188.1,0.000366,31]
[359182274,1745780757101,188.1,0.000366,31]
[359182275,1745780757149,188.1,0.000366,31]
[359182276,1745780757211,188.1,0.000366,31]
[359182277,1745780757273,188.1,0.000366,31]
[359182278,1745780757330,188.1,0.000366,31]
[359182279,1745780757391,188.1,0.000366,31]
[359182280,1745780757455,188.1,0.000366,31]
[359182281,1745780757514,188.1,0.000397,31]
[359182282,1745780757574,188.1,0.000397,31]
[359182283,1745780757639,188.1,0.000397,31]
[359182284,1745780757857,188.1,0.000397,31]
[359182285,1745780757914,188.1,0.000397,31]
[359182286,1745780757975,188.1,0.000397,31]
[359182287,1745780758036,188.1,0.000397,31]
[359182288,1745780758104,188.1,0.000397,31]
[359182289,1745780758152,188.1,0.000397,31]
[359182290,1745780758187,188.1,0.000397,31]
[359182291,1745780758244,188.1,0.000397,31]
[359182292,1745780758294,188.1,0.000397,31]
[359182293,1745780758373,188.1,0.000397,31]
[359182294,1745780758413,188.1,0.000397,31]
[359182295,1745780758469,188.1,0.000397,31]
[359182296,1745780758526,188.1,0.000397,31]
[359182297,1745780758582,188.1,0.000397,31]
[359182298,1745780758653,188.1,0.000397,31]
[359182299,1745780758721,188.1,0.000397,31]
[359182300,1745780758771,188.1,0.000397,31]
[359182301,1745780758829,188.1,0.000397,31]
[359182302,1745780758886,188.1,0.000397,31]
[359182303,1745780758948,188.1,0.000397,31]
[359182304,1745780759008,188.1,0.000397,31]
[359182305,1745780759755,-186.75,0.00019405,2]
[359182306,1745780759786,-200.0,0.00019415,2]
[359182307,1745780759813,-24.04277193,0.00019425,2]
[359182308,1745780763603,-150.7684245,0.00019431,2]
[359182309,1745780770172,-49.2315755,0.00019431,2]
[359182310,1745780801908,250.0,0.00019233,2]
[359182311,1745780822987,1178.01,0.00018983,2]
[359182312,1745780834738,200.0,0.00018993,2]
[359182313,1745780835857,500.0,0.00019999,120]
[359182314,1745780836141,500.0,0.00019999,120]
[359182315,1745780836455,500.0,0.00019999,120]
[359182316,1745780836699,500.0,0.00019999,120]
[359182317,1745780836950,500.0,0.00019999,120]
[359182318,1745780837269,564.22947307,0.00019999,120]
[359182319,1745780841916,500.0,0.00040512,30]
[359182320,1745780842267,500.0,0.00040537,30]
[359182321,1745780842588,500.0,0.00040566,30]
[359182322,1745780843441,500.0,0.0004084,30]
[359182323,1745780843776,600.0,0.00040987,30]
[359182324,1745780845031,500.0,0.00041077,30]
[359182325,1745780845490,500.0,0.0003726,60]
[359182326,1745780847144,500.0,0.00038356,60]
[359182327,1745780849151,500.0,0.00039452,60]
[359182328,1745780850718,500.0,0.00040548,60]
[359182329,1745780854001,500.0,0.0004079,30]
[359182330,1745780854344,972.66696505,0.00040924,30]